bitfinex-derivatives/quotes_SOLF0:USTF0_20230402
["timestamp","ask_amount","ask_price","bid_price","bid_amount"]
[1680456740786,23.96,20.597,20.587,0.0670973]
[1680456742091,24.20187643,20.598,20.587,24.2070973]
[1680456754800,0.06187643,20.598,20.587,24.2070973]
[1680456755402,24.14,20.597,20.587,24.2070973]
[1680456756300,0.06187643,20.598,20.589,24.06]
[1680456757100,24.14,20.597,20.587,0.0670973]
[1680456758004,0.06187643,20.598,20.587,0.0670973]
[1680456758403,0.06187643,20.598,20.589,24.04]
[1680456765110,0.06187643,20.598,20.59,45.4906]
[1680456766013,24.14,20.596,20.59,45.4906]
[1680456769419,0.06187643,20.598,20.59,45.4906]
[1680456771017,0.06187643,20.598,20.587,24.1270973]
[1680456772019,23.96,20.597,20.587,0.0670973]
[1680456773825,24.14,20.593,20.587,0.0670973]
[1680456774015,24.14,20.593,20.583,0.06983512]
[1680456774324,24.14,20.59,20.583,0.06983512]
[1680456778926,24.20567272,20.594,20.583,0.06983512]
[1680456779931,0.06567272,20.594,20.586,24.14]
[1680456790129,0.06567272,20.594,20.588,24.14]
[1680456790337,0.07137077,20.598,20.588,24.14]
[1680456790634,23.98,20.599,20.588,24.14]
[1680456802145,24.14,20.599,20.588,24.14]
[1680456803644,0.06789555,20.6,20.591,24.14]
[1680456803847,0.06789555,20.6,20.592,45.0596]
[1680456806347,0.06789555,20.6,20.595,24.14]
[1680456806548,0.06186929,20.605,20.595,23.90536059]
[1680456807043,0.06186929,20.605,20.592,45.0596]
[1680456807044,24.14,20.602,20.592,45.0596]
[1680456807249,24.14,20.599,20.592,45.0596]
[1680456807547,24.14,20.596,20.59,0.06285324]
[1680456807743,24.14,20.596,20.586,14.39505794]
[1680456807947,24.14,20.596,20.586,0.06029574]
[1680456812049,23.93,20.598,20.587,23.97]
[1680456815661,0.07040312,20.6,20.591,23.97]
[1680456820957,23.93,20.598,20.587,70.7219]
[1680456821163,23.93,20.596,20.587,46.7519]
[1680456821456,0.07040312,20.6,20.588,23.97]
[1680456821860,23.93,20.599,20.588,23.97]
[1680456831276,0.07040312,20.6,20.592,24.14]
[1680456832578,0.07040312,20.6,20.593,24.41]
[1680456836980,0.07040312,20.6,20.596,24.41]
[1680456837177,0.06762836,20.605,20.596,24.41]
[1680456839379,0.06762836,20.605,20.597,45.2885]
[1680456847598,0.06762836,20.605,20.6,24.4]
[1680456847793,113.74950495,20.61,20.6,24.4]
[1680456854511,0.06078903,20.61,20.6,24.4]
[1680456854696,24.47078903,20.61,20.6,24.4]
[1680456857605,0.06078903,20.61,20.6,24.4]
[1680456857799,0.06078903,20.61,20.597,45.2885]
[1680456858005,24.28,20.604,20.597,45.2885]
[1680456858205,24.31,20.602,20.596,14.74359377]
[1680456858502,124.31,20.602,20.595,0.06423927]
[1680456859009,24.31,20.602,20.595,0.06423927]
[1680456859210,0.06126534,20.606,20.597,24.4]
[1680456859706,24.31,20.605,20.596,48.243]
[1680456860400,24.41,20.602,20.595,0.06423927]
[1680456862008,24.41,20.603,20.595,0.06423927]
[1680456865305,24.47126534,20.606,20.595,24.30423927]
[1680456867100,0.06126534,20.606,20.598,24.34]
[1680456870308,48.2439,20.611,20.601,24.24]
[1680456870509,24.41,20.619,20.601,24.24]
[1680456870809,24.41,20.613,20.601,24.24]
[1680456871009,24.27,20.616,20.604,24.3]
[1680456871908,0.06217394,20.617,20.603,0.06135877]
[1680456871909,24.41,20.613,20.603,0.06135877]
[1680456872207,24.41,20.611,20.603,0.06135877]
[1680456873412,24.41,20.614,20.603,24.36135877]
[1680456882016,24.47217394,20.617,20.606,24.41]
[1680456883020,24.41,20.615,20.604,48.1088]
[1680456884519,24.47217394,20.617,20.606,24.3]
[1680456891923,0.06217394,20.617,20.609,24.34]
[1680456892121,0.06217394,20.617,20.612,24.3]
[1680456892423,48.0319,20.621,20.612,24.3]
[1680456892920,48.0319,20.621,20.612,24.21]
[1680456903034,24.35,20.619,20.607,24.25034707]
[1680456904032,48.0319,20.621,20.611,24.21]
[1680456904235,48.0319,20.621,20.607,0.06034707]
[1680456904826,48.0319,20.621,20.611,24.21]
[1680456905334,24.4159827,20.622,20.611,24.21]
[1680456912238,24.26,20.62,20.609,24.21]
[1680456913934,24.36,20.617,20.607,0.06034707]
[1680456916641,24.26,20.613,20.607,0.06034707]
[1680456916937,24.26,20.613,20.604,48.1088]
[1680456920045,24.33061813,20.617,20.606,24.26]
[1680456922036,0.07061813,20.617,20.607,24.19]
[1680456923446,0.07061813,20.617,20.607,24.16]
[1680456927852,0.07061813,20.617,20.61,24.16]
[1680456931753,0.07061813,20.617,20.613,24.16]
[1680456931948,0.06637228,20.622,20.613,24.16]
[1680456946962,0.06637228,20.622,20.617,24.16]
[1680456947161,71.53278022,20.627,20.617,24.16]
[1680456947557,113.61291714,20.626,20.617,24.16]
[1680456952966,254.53221787,20.625,20.617,3.79114072]
[1680456953166,254.53221787,20.624,20.617,3.79114072]
[1680456953467,254.53221787,20.623,20.617,3.79114072]
[1680456953667,254.53221787,20.622,20.616,24.27]
[1680456953857,254.53221787,20.621,20.616,24.27]
[1680456954058,254.53221787,20.62,20.616,24.27]
[1680456954263,254.53221787,20.619,20.616,24.27]
[1680456954463,254.53221787,20.618,20.616,24.27]
[1680456954665,254.53221787,20.617,20.616,24.27]
[1680456955367,113.61291714,20.617,20.616,24.27]
[1680456956268,113.61291714,20.617,20.613,24.27]
[1680456956567,254.53221787,20.616,20.613,24.27]
[1680456956768,254.53221787,20.615,20.613,24.27]
[1680456956967,254.53221787,20.614,20.613,24.27]
[1680456957172,113.61291714,20.614,20.613,24.27]
[1680456957365,254.53221787,20.614,20.613,24.27]
[1680456959068,113.61291714,20.614,20.613,24.27]
[1680456960172,0.06087809,20.622,20.613,24.27]
[1680456961965,0.06087809,20.622,20.612,14.64508032]
[1680456962171,0.06087809,20.622,20.614,24.12]
[1680456975281,0.06087809,20.622,20.618,24.29]
[1680456975579,61.57653268,20.627,20.618,24.29]
[1680456978282,85.83653268,20.627,20.615,24.29]
[1680456978482,106.42226622,20.626,20.615,24.29]
[1680456978974,71.41541883,20.627,20.615,24.29]
[1680456980278,24.32691883,20.627,20.615,24.29]
[1680456982086,0.06691883,20.627,20.618,24.12]
[1680456984280,0.06691883,20.627,20.618,24.32]
[1680456989384,0.06691883,20.627,20.615,5.0]
[1680456989385,0.06691883,20.627,20.624,24.35]
[1680456989589,100.0,20.642,20.624,24.35]
[1680456989590,0.06677292,20.633,20.624,24.35]
[1680456989783,24.33,20.635,20.624,24.35]
[1680456991992,46.43337837,20.636,20.626,24.35]
[1680456992793,0.06587837,20.636,20.626,24.35]
[1680456995893,0.06587837,20.636,20.629,24.35]
[1680456998685,24.40587837,20.636,20.625,24.39041978]
[1680457000793,0.06587837,20.636,20.627,24.32]
[1680457002097,0.06587837,20.636,20.63,24.35]
[1680457002296,106.36638693,20.639,20.63,24.35]
[1680457002798,0.06684917,20.64,20.633,24.35]
[1680457002996,0.06684917,20.64,20.636,24.32]
[1680457003197,48.13628182,20.645,20.636,24.32]
[1680457003395,0.06778182,20.645,20.636,24.32]
[1680457004296,0.06778182,20.645,20.64,24.32]
[1680457004497,0.06408088,20.65,20.64,24.32]
[1680457004697,108.17093936,20.65,20.64,24.32]
[1680457004894,108.10685848,20.649,20.64,24.32]
[1680457005094,0.06408088,20.65,20.64,24.32]
[1680457005293,1.8445928,20.65,20.64,24.32]
[1680457009908,1.8445928,20.65,20.641,48.2094]
[1680457019318,0.06408088,20.65,20.644,24.13]
[1680457019621,0.07021246,20.654,20.644,24.3]
[1680457019813,0.07029191,20.656,20.644,24.3]
[1680457020011,24.3,20.654,20.644,24.3]
[1680457021521,0.06109583,20.657,20.649,24.22]
[1680457021921,0.06109583,20.657,20.652,24.22]
[1680457022123,24.3,20.663,20.652,24.22]
[1680457022124,0.06054739,20.662,20.652,24.22]
[1680457022323,1.84030135,20.662,20.652,24.22]
[1680457022821,1.84030135,20.662,20.647,0.06982711]
[1680457022822,24.3,20.661,20.649,24.3]
[1680457023119,1.77975396,20.66,20.65,47.6993]
[1680457023525,24.3,20.658,20.65,47.6993]
[1680457026828,24.21,20.661,20.65,71.9193]
[1680457027729,0.06054739,20.662,20.65,47.6993]
[1680457027730,24.3,20.659,20.65,47.6993]
[1680457027925,24.3,20.655,20.65,47.6993]
[1680457028723,24.3,20.655,20.647,0.06982711]
[1680457032032,24.3,20.653,20.647,0.06982711]
[1680457032330,24.3,20.653,20.643,0.0706745]
[1680457036824,24.21,20.655,20.644,24.3]
[1680457037024,0.06863197,20.657,20.648,24.22]
[1680457038734,0.06863197,20.657,20.649,44.7606]
[1680457039033,0.06863197,20.657,20.65,24.13]
[1680457040837,0.06863197,20.657,20.653,24.22]
[1680457041036,1.84705397,20.662,20.653,24.22]
[1680457042138,26.14705397,20.662,20.651,24.22]
[1680457042333,24.36757763,20.662,20.651,24.22]
[1680457044236,1.77947712,20.661,20.651,24.22]
[1680457045536,1.77947712,20.661,20.651,24.27]
[1680457052143,24.18757763,20.662,20.651,24.27]
[1680457056647,24.12,20.659,20.649,44.7606]
[1680457058343,24.12,20.657,20.649,44.7606]
[1680457062147,24.2,20.655,20.649,44.7606]
[1680457066248,24.2,20.655,20.648,0.06793177]
[1680457074847,24.28,20.655,20.648,0.06793177]
[1680457075352,24.28,20.659,20.648,24.34793177]
[1680457075744,45.94287763,20.662,20.648,24.34793177]
[1680457076048,0.06757763,20.662,20.651,24.28]
[1680457076248,24.34757763,20.662,20.651,24.28]
[1680457077349,0.06757763,20.662,20.655,24.22]
[1680457082152,0.06757763,20.662,20.648,0.06793177]
[1680457082153,24.27,20.659,20.648,0.06793177]
[1680457082550,24.27,20.657,20.648,0.06793177]
[1680457088048,106.26253035,20.656,20.648,0.06793177]
[1680457089753,106.26253035,20.656,20.649,24.18]
[1680457089956,106.26253035,20.655,20.649,24.18]
[1680457090155,106.26253035,20.654,20.649,24.18]
[1680457090352,106.26253035,20.658,20.649,24.18]
[1680457091155,106.26253035,20.658,20.652,24.22]
[1680457091360,106.26253035,20.657,20.652,24.22]
[1680457091560,106.26253035,20.656,20.652,24.22]
[1680457091861,106.26253035,20.655,20.652,24.22]
[1680457092159,106.26253035,20.654,20.652,24.22]
[1680457092361,0.06757763,20.662,20.652,24.22]
[1680457092657,1.84693002,20.662,20.652,24.22]
[1680457093058,106.26187325,20.661,20.652,24.22]
[1680457093466,0.06757763,20.662,20.652,24.22]
[1680457093659,1.84693181,20.662,20.652,24.22]
[1680457093859,108.10880506,20.662,20.652,24.22]
[1680457094060,108.04122743,20.661,20.652,24.22]
[1680457094261,106.26187325,20.66,20.652,24.22]
[1680457094460,106.26187325,20.659,20.652,24.22]
[1680457094662,106.32945088,20.662,20.652,24.22]
[1680457094864,1.77935456,20.661,20.652,24.22]
[1680457095163,106.26187325,20.66,20.652,24.22]
[1680457095561,106.26187325,20.659,20.652,24.22]
[1680457095860,106.26187325,20.658,20.652,24.22]
[1680457096062,106.26187325,20.657,20.652,24.22]
[1680457096261,106.26187325,20.656,20.652,24.22]
[1680457096461,0.06757763,20.662,20.652,24.22]
[1680457096662,1.84691723,20.662,20.652,24.22]
[1680457096862,106.26115335,20.661,20.652,24.22]
[1680457097259,108.04047433,20.66,20.654,24.18]
[1680457097461,0.06757763,20.662,20.654,24.18]
[1680457097759,0.06757763,20.662,20.658,24.18]
[1680457097964,0.06472158,20.667,20.658,24.18]
[1680457098163,106.28661286,20.667,20.658,24.18]
[1680457098363,106.22189128,20.666,20.658,24.18]
[1680457098563,0.06472158,20.667,20.658,24.18]
[1680457099061,106.28617791,20.667,20.658,24.18]
[1680457099263,106.22145633,20.666,20.658,24.18]
[1680457099562,0.06472158,20.667,20.658,24.18]
[1680457099765,0.06472158,20.667,20.659,48.5547]
[1680457099967,106.28613276,20.667,20.659,48.5547]
[1680457100161,132.28036592,20.666,20.659,48.5547]
[1680457100357,0.06472158,20.667,20.659,48.5547]
[1680457100566,0.06472158,20.667,20.661,24.28]
[1680457100767,14.59611683,20.671,20.661,24.28]
[1680457101167,0.06723197,20.671,20.661,24.28]
[1680457101464,0.06723197,20.671,20.659,48.62064861]
[1680457101465,24.28,20.669,20.659,48.62064861]
[1680457101663,106.2211138,20.668,20.659,48.62064861]
[1680457102265,24.28,20.667,20.659,48.62064861]
[1680457102467,24.28,20.667,20.659,0.06594861]
[1680457102666,24.28,20.663,20.659,0.06594861]
[1680457102963,106.23000355,20.662,20.654,0.062162]
[1680457103467,106.23000355,20.662,20.656,24.28]
[1680457103770,0.06336622,20.665,20.656,24.28]
[1680457105268,0.06336622,20.665,20.656,24.21]
[1680457109162,0.06336622,20.665,20.654,0.062162]
[1680457109466,24.26,20.663,20.654,0.062162]
[1680457112374,0.06336622,20.665,20.655,24.18]
[1680457119880,0.06336622,20.665,20.659,24.26]
[1680457120080,24.18177917,20.669,20.659,24.26]
[1680457121175,24.12,20.666,20.656,24.26]
[1680457123179,0.06177917,20.669,20.658,24.26]
[1680457123180,24.18177917,20.669,20.658,24.26]
[1680457135591,0.06177917,20.669,20.659,24.07]
[1680457142190,24.25,20.668,20.657,24.2]
[1680457144392,0.06177917,20.669,20.661,24.2]
[1680457150793,24.11177917,20.669,20.658,24.25]
[1680457156601,0.06177917,20.669,20.661,24.25]
[1680457156795,0.06177917,20.669,20.662,47.6893]
[1680457158002,0.06177917,20.669,20.665,24.17]
[1680457158203,14.27817881,20.674,20.665,24.17]
[1680457158403,0.06079905,20.674,20.665,24.17]
[1680457163206,24.05,20.673,20.663,24.25]
[1680457165307,24.01,20.673,20.663,24.24]
[1680457168514,0.06079905,20.674,20.665,24.24]
[1680457170919,0.06079905,20.674,20.662,47.75753597]
[1680457171222,0.06079905,20.674,20.666,24.24]
[1680457180038,24.24,20.673,20.662,86.35578897]
[1680457180338,24.24,20.67,20.662,62.11578897]
[1680457191846,24.30079905,20.674,20.664,24.24]
[1680457201849,24.02,20.672,20.662,86.35578897]
[1680457202752,24.17079905,20.674,20.664,24.06]
[1680457212166,24.02,20.673,20.662,86.35578897]
[1680457212665,0.06079905,20.674,20.665,24.06]
[1680457212861,0.06079905,20.674,20.665,23.85016201]
[1680457216863,24.24,20.672,20.662,86.35578897]
[1680457217866,24.24,20.67,20.659,24.2]
[1680457218167,24.11,20.667,20.656,24.06]
[1680457223166,0.07102656,20.669,20.656,24.06]
[1680457223370,0.07102656,20.669,20.664,24.24]
[1680457223573,47.6696,20.673,20.664,24.24]
[1680457224873,24.24,20.672,20.661,24.06]
[1680457226873,24.25,20.672,20.661,24.2]
[1680457231284,24.25,20.669,20.659,0.06030785]
[1680457231984,24.25,20.67,20.659,24.31030785]
[1680457236382,24.25,20.67,20.659,39.10612489]
[1680457242088,24.25,20.669,20.659,39.10612489]
[1680457251997,24.25,20.669,20.659,14.85612489]
[1680457256303,47.6696,20.673,20.659,14.85612489]
[1680457256304,24.26,20.668,20.659,14.85612489]
[1680457262909,24.26,20.668,20.659,0.06030785]
[1680457263206,24.26,20.665,20.659,0.06030785]
[1680457263400,24.26,20.665,20.655,0.07116499]
[1680457264022,45.2131,20.664,20.655,0.07116499]
[1680457267815,24.26,20.665,20.655,0.07116499]
[1680457268115,0.06353699,20.669,20.664,24.26]
[1680457268307,0.06413003,20.674,20.664,24.26]
[1680457273816,0.06413003,20.674,20.668,24.26]
[1680457274021,106.24893094,20.678,20.668,24.26]
[1680457277724,24.26,20.676,20.665,24.26]
[1680457278018,106.18863169,20.675,20.665,24.26]
[1680457280823,24.26,20.676,20.665,24.26]
[1680457281621,106.18751337,20.675,20.665,24.26]
[1680457281827,24.26,20.676,20.665,24.26]
[1680457282427,106.17823689,20.675,20.665,24.26]
[1680457283116,24.26,20.676,20.665,24.26]
[1680457286424,24.04,20.677,20.666,24.11]
[1680457290423,24.09,20.683,20.672,24.23]
[1680457290623,38.27456462,20.687,20.676,24.11]
[1680457290824,106.15480419,20.686,20.676,24.11]
[1680457291727,24.12,20.683,20.674,0.06248368]
[1680457293123,48.0733,20.685,20.675,24.23]
[1680457293725,24.04,20.683,20.674,0.06248368]
[1680457294424,48.0733,20.685,20.675,24.07]
[1680457297631,24.09,20.683,20.674,0.06248368]
[1680457299426,24.04,20.68,20.674,0.06248368]
[1680457299730,24.04,20.677,20.67,0.06964362]
[1680457300029,24.04,20.677,20.666,70.28859629]
[1680457300828,24.12,20.673,20.666,46.12859629]
[1680457304835,24.09,20.675,20.666,46.12859629]
[1680457312037,24.15285757,20.677,20.666,70.23859629]
[1680457317335,24.22285757,20.677,20.666,70.27859629]
[1680457317837,24.09,20.674,20.666,0.06319629]
[1680457319039,24.09,20.671,20.666,0.06319629]
[1680457319239,24.09,20.671,20.661,0.06003378]
[1680457321841,24.16,20.668,20.661,0.06003378]
[1680457322140,24.09,20.666,20.661,0.06003378]
[1680457322341,24.09,20.666,20.656,0.07125227]
[1680457323741,24.16,20.661,20.656,0.07125227]
[1680457323942,24.16,20.661,20.651,24.21120604]
[1680457329845,0.0698595,20.663,20.651,24.21120604]
[1680457329846,24.09,20.659,20.651,0.06120604]
[1680457330442,24.16,20.655,20.651,0.06120604]
[1680457330642,24.16,20.655,20.647,14.38807955]
[1680457330840,24.16,20.655,20.646,0.06859832]
[1680457332246,0.06518411,20.658,20.646,24.30859832]
[1680457332247,24.09,20.657,20.646,24.30859832]
[1680457333137,24.03,20.657,20.646,24.21859832]
[1680457342156,0.06518411,20.658,20.648,24.15]
[1680457346859,24.34518411,20.658,20.647,73.0254]
[1680457347765,0.06518411,20.658,20.651,24.08]
[1680457348662,0.06518411,20.658,20.654,24.08]
[1680457348864,0.06529976,20.663,20.654,24.08]
[1680457349364,0.06529976,20.663,20.655,45.8899]
[1680457352268,0.06529976,20.663,20.657,24.28]
[1680457352469,68.69968666,20.667,20.657,24.28]
[1680457353067,44.41968666,20.667,20.66,24.28]
[1680457361474,44.41968666,20.667,20.657,24.28]
[1680457372189,44.41968666,20.667,20.659,24.28]
[1680457376293,44.41968666,20.667,20.656,24.34417462]
[1680457376993,68.67968666,20.667,20.656,24.27417462]
[1680457377293,24.22,20.664,20.656,0.06417462]
[1680457382097,24.22,20.666,20.656,0.06417462]
[1680457383898,0.07128666,20.667,20.659,24.15]
[1680457384303,0.07128666,20.667,20.662,24.15]
[1680457384504,0.07135194,20.672,20.666,24.21]
[1680457384695,24.28026778,20.676,20.666,24.21]
[1680457389806,24.26,20.673,20.662,24.15345161]
[1680457390808,24.08,20.669,20.662,0.06345161]
[1680457391009,24.26,20.666,20.662,0.06345161]
[1680457391208,24.26,20.666,20.657,0.06349035]
[1680457402117,24.22,20.663,20.657,0.06349035]
[1680457402318,24.22,20.663,20.653,45.79295654]
[1680457407218,24.27,20.663,20.653,45.79295654]
[1680457414228,24.27,20.663,20.653,0.06395654]
[1680457414723,46.5628,20.662,20.653,0.06395654]
[1680457420434,46.5628,20.662,20.654,24.27]
[1680457420931,24.33333693,20.665,20.654,24.27]
[1680457422032,0.06333693,20.665,20.657,24.27]
[1680457429037,24.33333693,20.665,20.654,72.5395]
[1680457432138,24.33333693,20.665,20.654,48.2695]
[1680457440642,0.06333693,20.665,20.656,24.06]
[1680457443749,0.06333693,20.665,20.659,24.27]
[1680457443949,0.06902067,20.669,20.663,24.26]
[1680457444146,0.07055573,20.673,20.663,24.26]
[1680457444648,0.07055573,20.673,20.664,45.4673]
[1680457451956,0.07055573,20.673,20.666,24.27]
[1680457465768,0.07055573,20.673,20.664,45.4673]
[1680457466674,24.06,20.671,20.664,45.4673]
[1680457475671,0.07055573,20.673,20.664,45.4673]
[1680457475672,24.24,20.668,20.664,45.4673]
[1680457476271,24.24,20.668,20.659,0.06586562]
[1680457477580,24.24,20.671,20.661,24.03]
[1680457496394,0.07055573,20.673,20.664,24.03]
[1680457497191,0.07055573,20.673,20.666,24.25]
[1680457497395,0.07055573,20.673,20.662,24.25]
[1680457497596,0.07055573,20.673,20.663,24.24]
[1680457498993,24.18,20.67,20.659,69.61216562]
[1680457499189,24.18,20.667,20.659,45.37216562]
[1680457501900,24.18,20.667,20.659,0.06586562]
[1680457502098,24.24,20.665,20.659,0.06586562]
[1680457502291,24.24,20.665,20.655,0.06726232]
[1680457510700,24.19,20.661,20.65,24.18]
[1680457511105,24.24,20.657,20.647,48.6164]
[1680457514004,0.06222581,20.659,20.65,24.08]
[1680457515505,24.24,20.658,20.647,72.6964]
[1680457516702,24.24,20.658,20.647,24.08]
[1680457516910,24.19,20.652,20.645,0.06217724]
[1680457517407,45.5042,20.657,20.645,0.06217724]
[1680457517408,24.19,20.649,20.645,0.06217724]
[1680457517607,24.19,20.649,20.641,14.19146391]
[1680457517804,24.19,20.649,20.64,0.06994988]
[1680457519712,24.24,20.646,20.64,0.06994988]
[1680457519910,24.24,20.646,20.637,63.16574898]
[1680457520410,24.24,20.646,20.636,0.06750132]
[1680457528318,24.31,20.645,20.636,0.06750132]
[1680457528919,47.7474,20.648,20.637,24.31]
[1680457532020,24.3,20.646,20.636,0.06750132]
[1680457540623,72.0574,20.648,20.637,24.31]
[1680457544027,47.7474,20.648,20.64,24.28]
[1680457544226,47.7474,20.648,20.638,5.0]
[1680457544227,0.06315484,20.649,20.643,24.28]
[1680457544527,0.07101941,20.653,20.643,24.28]
[1680457557937,24.14101941,20.653,20.642,24.08]
[1680457560040,0.07101941,20.653,20.645,24.28]
[1680457572044,0.07101941,20.653,20.647,24.05]
[1680457572249,0.06378158,20.657,20.647,24.05]
[1680457581959,24.16,20.655,20.645,0.06107487]
[1680457588262,24.28,20.654,20.645,0.06107487]
[1680457592168,24.28,20.656,20.646,24.11]
[1680457602081,0.06378158,20.657,20.648,24.28]
[1680457602279,0.06378158,20.657,20.649,47.4143]
[1680457605180,0.06378158,20.657,20.648,24.28]
[1680457605377,24.28,20.655,20.645,0.06107487]
[1680457621993,24.28,20.656,20.646,24.15]
[1680457632903,106.27226128,20.655,20.646,24.15]
[1680457633803,24.28,20.656,20.646,24.15]
[1680457634008,24.27,20.653,20.645,0.06107487]
[1680457634205,24.28,20.65,20.645,0.06107487]
[1680457634504,24.28,20.65,20.64,0.06098242]
[1680457635406,0.06870791,20.652,20.642,24.15]
[1680457635602,0.06870791,20.652,20.645,24.15]
[1680457635906,0.06870791,20.652,20.643,24.15]
[1680457637106,19.49870791,20.652,20.645,19.43]
[1680457637499,19.43,20.646,20.64,0.06098242]
[1680457637811,19.43,20.645,20.637,19.43]
[1680457638807,19.43,20.647,20.64,19.43]
[1680457642210,24.19,20.649,20.638,24.07]
[1680457643907,44.87267343,20.651,20.642,24.3]
[1680457648115,44.87267343,20.651,20.642,24.29]
[1680457652020,44.87267343,20.651,20.644,24.29]
[1680457664728,0.07027343,20.651,20.644,24.29]
[1680457665428,0.07027343,20.651,20.647,24.25]
[1680457665728,0.06675855,20.656,20.647,24.25]
[1680457674330,24.14675855,20.656,20.645,72.1051]
[1680457678135,24.29675855,20.656,20.645,72.0951]
[1680457678731,0.06675855,20.656,20.648,24.04]
[1680457692043,0.06675855,20.656,20.651,24.05]
[1680457692244,106.3252823,20.661,20.651,24.05]
[1680457693044,0.06798525,20.661,20.654,24.28]
[1680457698541,0.06798525,20.661,20.658,24.28]
[1680457698743,0.07066656,20.667,20.658,24.28]
[1680457702050,24.13066656,20.667,20.656,72.8597]
[1680457702349,106.23866627,20.666,20.656,72.8597]
[1680457705752,24.13066656,20.667,20.656,72.8597]
[1680457707349,24.26,20.663,20.656,48.8197]
[1680457708250,24.2,20.663,20.656,48.8197]
[1680457716461,24.2,20.663,20.655,0.06677131]
[1680457719563,24.24,20.66,20.655,0.06677131]
[1680457719754,24.24,20.66,20.65,0.06308041]
[1680457720963,0.06243001,20.662,20.652,24.26]
[1680457721162,0.06243001,20.662,20.653,46.6971]
[1680457721565,0.06243001,20.662,20.654,5.0]
[1680457722064,0.06243001,20.662,20.654,29.06]
[1680457723264,0.06243001,20.662,20.654,24.06]
[1680457734769,46.0131,20.671,20.658,24.26]
[1680457734978,24.2,20.68,20.662,24.06]
[1680457735168,24.24,20.673,20.663,46.6685]
[1680457735368,24.24,20.67,20.659,24.06]
[1680457735769,24.24,20.667,20.657,46.73247762]
[1680457738474,24.26,20.667,20.657,46.73247762]
[1680457740577,24.26,20.67,20.659,24.26]
[1680457741976,24.26,20.671,20.66,24.26]
[1680457743577,24.13,20.668,20.657,70.99247762]
[1680457745080,24.13,20.665,20.657,0.06397762]
[1680457750585,24.26,20.669,20.658,24.26]
[1680457758094,24.26,20.667,20.657,0.06397762]
[1680457758290,24.26,20.664,20.657,0.06397762]
[1680457766904,24.3205917,20.668,20.657,24.32397762]
[1680457768798,24.2105917,20.668,20.657,24.31397762]
[1680457777008,24.25,20.666,20.657,0.06397762]
[1680457799324,24.26,20.666,20.657,0.06397762]
[1680457802029,47.8091,20.667,20.657,24.09397762]
[1680457803932,24.3205917,20.668,20.657,24.09397762]
[1680457806038,24.26,20.665,20.657,0.06397762]
[1680457807331,24.26,20.662,20.657,0.06397762]
[1680457807538,24.26,20.662,20.652,0.06433967]
[1680457812141,24.2,20.66,20.652,0.06433967]
[1680457817745,0.06480442,20.664,20.652,0.06433967]
[1680457817746,24.2,20.656,20.652,0.06433967]
[1680457818046,24.2,20.653,20.647,0.06504967]
[1680457818246,24.2,20.653,20.643,5.06181666]
[1680457818443,24.2,20.653,20.643,0.06181666]
[1680457828047,24.26,20.65,20.643,0.06181666]
[1680457828752,24.24,20.65,20.643,0.06181666]
[1680457830856,45.0165,20.656,20.628,145.8]
[1680457830857,24.24,20.648,20.628,145.8]
[1680457831152,24.15,20.644,20.629,47.7954]
[1680457831352,24.15,20.644,20.633,24.26]
[1680457831751,24.15,20.644,20.629,47.7954]
[1680457831752,24.18,20.641,20.63,24.26]
[1680457831952,24.18,20.641,20.631,0.06029713]